fUSD/lending_fUSD_20260315
["ID","MTS","AMOUNT","RATE_DAILY","PERIOD"]
[408401053,1773568248591,-1700.0,0.00039904,14]
[408401054,1773568248601,-2600.0,0.00039904,14]
[408401055,1773568248611,-400.0,0.0003997,2]
[408401056,1773568248621,-206.05,0.0004,120]
[408401057,1773568248631,-161.0,0.0004,120]
[408401058,1773568248640,-165.0,0.0004,120]
[408401059,1773568248654,-3276.51568842,0.0004,120]
[408401060,1773568248664,-504.54772587,0.0004,30]
[408401061,1773568248673,-50000.0,0.0004,120]
[408401062,1773568248683,-151.22,0.0004,2]
[408401063,1773568248693,-151.22,0.0004,2]
[408401064,1773568248702,-151.22,0.0004,2]
[408401065,1773568248712,-151.22,0.0004,2]
[408401066,1773568248722,-151.22,0.0004,2]
[408401067,1773568248732,-151.22,0.0004,2]
[408401068,1773568248743,-151.22,0.0004,2]
[408401069,1773568248753,-151.22,0.0004,2]
[408401070,1773568248763,-151.22,0.0004,2]
[408401071,1773568248773,-151.22,0.0004,2]
[408401072,1773568248783,-151.22,0.0004,2]
[408401073,1773568248792,-151.22,0.0004,2]
[408401074,1773568248802,-151.22,0.0004,2]
[408401075,1773568248812,-151.22,0.0004,2]
[408401076,1773568248821,-151.22,0.0004,2]
[408401077,1773568248831,-151.22,0.0004,2]
[408401078,1773568248840,-151.22,0.0004,2]
[408401079,1773568248849,-151.22,0.0004,2]
[408401080,1773568248860,-151.22,0.0004,2]
[408401081,1773568248870,-151.22,0.0004,2]
[408401082,1773568248879,-151.22,0.0004,2]
[408401083,1773568248889,-151.22,0.0004,2]
[408401084,1773568248899,-151.22,0.0004,2]
[408401085,1773568248909,-151.22,0.0004,2]
[408401086,1773568248919,-151.22,0.0004,2]
[408401087,1773568248928,-151.22,0.0004,2]
[408401088,1773568248938,-151.22,0.0004,2]
[408401089,1773568248948,-151.22,0.0004,2]
[408401090,1773568248957,-151.22,0.0004,2]
[408401091,1773568248967,-151.22,0.0004,2]
[408401092,1773568248976,-1000.0,0.0004,120]
[408401093,1773568248985,-2000.0,0.000401,2]
[408401094,1773568248995,-246.1232,0.000401,30]
[408401095,1773568249005,-152.0,0.00040107,11]
[408401096,1773568249015,-1000.0,0.00040274,120]
[408401097,1773568249024,-246.1232,0.000403,30]
[408401098,1773568249037,-1404.44,0.000404,14]
[408401099,1773568249047,-246.1232,0.000405,30]
[408401100,1773568249056,-1000.0,0.00040548,120]
[408401101,1773568249066,-151.0,0.00040599,120]
[408401102,1773568249076,-151.0,0.00040599,120]
[408401103,1773568249086,-240.84276138,0.00040693,2]
[408401104,1773568249095,-246.1232,0.000407,30]
[408401105,1773568249105,-600.0,0.000407,14]
[408401106,1773568249115,-217.5879625,0.000407,6]
[408401107,1773568249124,-700.0,0.00040726,14]
[408401108,1773568249135,-1700.0,0.00040726,14]
[408401109,1773568249145,-2600.0,0.00040726,14]
[408401110,1773568249155,-4417.06,0.000408,30]
[408401111,1773568249165,-157.019101,0.000408,120]
[408401112,1773568249175,-189.712383,0.000408,120]
[408401113,1773568249185,-600.0,0.000408,14]
[408401114,1773568249194,-354.10185175,0.00040811,7]
[408401115,1773568249204,-155.45652414,0.00040818,16]
[408401116,1773568249213,-150.0,0.00040818,120]
[408401117,1773568249223,-150.0,0.00040818,120]
[408401118,1773568249233,-150.0,0.00040818,120]
[408401119,1773568249242,-153.16199732,0.00040818,120]
[408401120,1773568249252,-155.82159694,0.00040818,120]
[408401121,1773568249261,-151.46727953,0.00040818,120]
[408401122,1773568249270,-212.76778111,0.00040818,120]
[408401123,1773568249279,-154.43035368,0.00040818,120]
[408401124,1773568249290,-191.20135912,0.00040818,120]
[408401125,1773568249299,-500.0,0.00040818,120]
[408401126,1773568249309,-151.0,0.00040818,14]
[408401127,1773568249318,-151.0,0.00040818,14]
[408401128,1773568249327,-151.0,0.00040818,14]
[408401129,1773568249336,-1489.97049065,0.0004082,60]
[408401130,1773568249346,-1489.97049065,0.0004082,60]
[408401131,1773568249356,-1489.97049065,0.0004082,60]
[408401132,1773568249365,-1489.97049065,0.0004082,60]
[408401133,1773568249375,-1489.97049064,0.0004082,60]
[408401134,1773568249386,-1489.97049064,0.0004082,60]
[408401135,1773568249396,-1489.97049064,0.0004082,60]
[408401136,1773568249406,-151.0,0.0004082,120]
[408401137,1773568249419,-310.34047913,0.0004082,10]
[408401138,1773568249429,-407.22884135,0.00040821,2]
[408401139,1773568249439,-223.430848,0.00040821,120]
[408401140,1773568249449,-500.0,0.00040821,15]
[408401141,1773568249459,-500.0,0.00040821,15]
[408401142,1773568249473,-500.0,0.00040821,15]
[408401143,1773568249484,-500.0,0.00040821,15]
[408401144,1773568249636,-500.0,0.00040821,15]
[408401145,1773568249646,-500.0,0.00040821,15]
[408401146,1773568249657,-300.99,0.00040821,15]
[408401147,1773568249667,-176.17667065,0.00040821,30]
[408401148,1773568249677,-194.68629439,0.00040821,120]
[408401149,1773568249687,-164.05436096,0.00040821,120]
[408401150,1773568249698,-165.80008881,0.00040821,120]
[408401151,1773568249710,-151.0,0.00040821,120]
[408401152,1773568249719,-152.14790811,0.00040821,120]
[408401153,1773568249730,-500.0,0.00040821,120]
[408401154,1773568249740,-500.0,0.00040821,120]
[408401155,1773568249749,-500.0,0.00040821,120]
[408401156,1773568249758,-500.0,0.00040821,120]
[408401157,1773568249767,-500.0,0.00040821,120]
[408401158,1773568249776,-500.0,0.00040821,120]
[408401159,1773568249786,-500.0,0.00040821,120]
[408401160,1773568249794,-500.0,0.00040821,120]
[408401161,1773568249803,-500.0,0.00040821,120]
[408401162,1773568249812,-500.0,0.00040821,120]
[408401163,1773568249822,-500.0,0.00040821,120]
[408401164,1773568249831,-500.0,0.00040821,120]
[408401165,1773568249840,-500.0,0.00040821,120]
[408401166,1773568249849,-500.0,0.00040821,120]
[408401167,1773568249858,-500.0,0.00040821,120]
[408401168,1773568249867,-500.0,0.00040821,120]
[408401169,1773568249876,-500.0,0.00040821,120]
[408401170,1773568249885,-500.0,0.00040821,120]
[408401171,1773568249894,-500.0,0.00040821,120]
[408401172,1773568249903,-550.76648267,0.00040821,120]
[408401173,1773568249913,-154.709285,0.00040821,120]
[408401174,1773568249922,-500.0,0.00040821,120]
[408401175,1773568249931,-500.0,0.00040821,120]
[408401176,1773568249941,-500.0,0.00040821,120]
[408401177,1773568249950,-174.22687854,0.00040821,120]
[408401178,1773568249959,-500.0,0.00040821,120]
[408401179,1773568249969,-500.0,0.00040821,120]
[408401180,1773568249978,-500.0,0.00040821,120]
[408401181,1773568249987,-500.0,0.00040821,120]
[408401182,1773568249997,-500.0,0.00040821,120]
[408401183,1773568250006,-500.0,0.00040821,120]
[408401184,1773568250016,-500.0,0.00040821,120]
[408401185,1773568250026,-500.0,0.00040821,120]
[408401186,1773568250035,-520.55581488,0.00040821,120]
[408401187,1773568250046,-500.0,0.00040821,120]
[408401188,1773568250056,-500.0,0.00040821,120]
[408401189,1773568250066,-500.0,0.00040821,120]
[408401190,1773568250075,-500.0,0.00040821,120]
[408401191,1773568250085,-500.0,0.00040821,120]
[408401192,1773568250095,-500.0,0.00040821,120]
[408401193,1773568250104,-500.0,0.00040821,120]
[408401194,1773568250114,-500.0,0.00040821,120]
[408401195,1773568250124,-500.0,0.00040821,120]
[408401196,1773568250134,-500.0,0.00040821,120]
[408401197,1773568250144,-500.0,0.00040821,120]
[408401198,1773568250153,-500.0,0.00040821,120]
[408401199,1773568250163,-500.0,0.00040821,120]
[408401200,1773568250173,-500.0,0.00040821,120]
[408401201,1773568250182,-500.0,0.00040821,120]
[408401202,1773568250192,-500.0,0.00040821,120]
[408401203,1773568250201,-500.0,0.00040821,120]
[408401204,1773568250211,-500.0,0.00040821,120]
[408401205,1773568250221,-500.0,0.00040821,120]
[408401206,1773568250231,-572.01806934,0.00040821,120]
[408401207,1773568250241,-500.0,0.00040821,120]
[408401208,1773568250251,-500.0,0.00040821,120]
[408401209,1773568250260,-500.0,0.00040821,120]
[408401210,1773568250269,-500.0,0.00040821,120]
[408401211,1773568250280,-500.0,0.00040821,120]
[408401212,1773568250296,-500.0,0.00040821,120]
[408401213,1773568250308,-500.0,0.00040821,120]
[408401214,1773568250326,-500.0,0.00040821,120]
[408401215,1773568250336,-500.0,0.00040821,120]
[408401216,1773568250346,-500.0,0.00040821,120]
[408401217,1773568250355,-500.0,0.00040821,120]
[408401218,1773568250364,-500.0,0.00040821,120]
[408401219,1773568250373,-500.0,0.00040821,120]
[408401220,1773568250383,-500.0,0.00040821,120]
[408401221,1773568250392,-500.0,0.00040821,120]
[408401222,1773568250401,-500.0,0.00040821,120]
[408401223,1773568250411,-500.0,0.00040821,120]
[408401224,1773568250420,-500.0,0.00040821,120]
[408401225,1773568250429,-574.85172267,0.00040821,120]
[408401226,1773568250439,-190.04847436,0.00040821,120]
[408401227,1773568250449,-500.0,0.00040821,120]
[408401228,1773568250463,-197.72613843,0.00040821,120]
[408401229,1773568250471,-153.73912029,0.00040821,120]
[408401230,1773568250480,-180.17291495,0.00040821,120]
[408401231,1773568250491,-159.07992912,0.00040821,120]
[408401232,1773568250500,-221.25840959,0.00040821,120]
[408401233,1773568250511,-181.22131884,0.00040821,120]
[408401234,1773568250522,-151.0,0.00040821,120]
[408401235,1773568250533,-151.0,0.00040821,120]
[408401236,1773568250543,-152.25578072,0.00040821,120]
[408401237,1773568250554,-486.40042023,0.00040821,120]
[408401238,1773568250563,-223.64475473,0.00040821,120]
[408401239,1773568250573,-500.0,0.00040821,2]
[408401240,1773568250582,-500.0,0.00040821,2]
[408401241,1773568250593,-500.0,0.00040821,2]
[408401242,1773568250603,-500.0,0.00040821,2]
[408401243,1773568250612,-500.0,0.00040821,2]
[408401244,1773568250622,-500.0,0.00040821,2]
[408401245,1773568250632,-570.76400395,0.00040821,2]
[408401246,1773568250642,-183.2097005,0.00040821,120]
[408401247,1773568250651,-500.0,0.00040821,30]
[408401248,1773568250661,-500.0,0.00040821,30]
[408401249,1773568250671,-500.0,0.00040821,30]
[408401250,1773568250680,-500.0,0.00040821,30]
[408401251,1773568250689,-500.0,0.00040821,30]
[408401252,1773568250699,-500.0,0.00040821,30]
[408401253,1773568250709,-500.0,0.00040821,30]
[408401254,1773568250718,-500.0,0.00040821,30]
[408401255,1773568250729,-500.0,0.00040821,30]
[408401256,1773568250738,-500.0,0.00040821,30]
[408401257,1773568250749,-473.70584513,0.00040821,30]
[408401258,1773568250759,-155.92399679,0.00040821,120]
[408401259,1773568250768,-150.42054048,0.00040821,120]
[408401260,1773568250777,-500.0,0.00040821,120]
[408401261,1773568250787,-500.0,0.00040821,120]
[408401262,1773568250796,-500.0,0.00040821,120]
[408401263,1773568250807,-500.0,0.00040821,120]
[408401264,1773568250816,-280.97332104,0.00040821,120]
[408401265,1773568250825,-158.410399,0.00040821,120]
[408401266,1773568250835,-194.72323926,0.00040821,120]
[408401267,1773568250845,-500.0,0.00040821,120]
[408401268,1773568250854,-500.0,0.00040821,120]
[408401269,1773568250863,-500.0,0.00040821,120]
[408401270,1773568250873,-500.0,0.00040821,120]
[408401271,1773568250883,-500.0,0.00040821,120]
[408401272,1773568250893,-150.5874429,0.00040821,120]
[408401273,1773568250902,-500.0,0.00040821,120]
[408401274,1773568250912,-500.0,0.00040821,120]
[408401275,1773568250921,-500.0,0.00040821,120]
[408401276,1773568250930,-500.0,0.00040821,120]
[408401277,1773568250940,-500.0,0.00040821,120]
[408401278,1773568250950,-500.0,0.00040821,120]
[408401279,1773568250960,-500.0,0.00040821,120]
[408401280,1773568250969,-304.15159588,0.00040821,120]
[408401281,1773568250979,-161.58621418,0.00040821,120]
[408401282,1773568250988,-175.58863705,0.00040821,120]
[408401283,1773568250997,-500.0,0.00040821,120]
[408401284,1773568251008,-500.0,0.00040821,120]
[408401285,1773568251017,-500.0,0.00040821,120]
[408401286,1773568251027,-500.0,0.00040821,120]
[408401287,1773568251037,-500.0,0.00040821,120]
[408401288,1773568251046,-500.0,0.00040821,120]
[408401289,1773568251055,-500.0,0.00040821,120]
[408401290,1773568251064,-500.0,0.00040821,120]
[408401291,1773568251074,-500.0,0.00040821,120]
[408401292,1773568251083,-500.0,0.00040821,120]
[408401293,1773568251092,-566.9,0.00040821,120]
[408401294,1773568251101,-500.0,0.00040821,120]
[408401295,1773568251110,-566.9,0.00040821,120]
[408401296,1773568251119,-500.0,0.00040821,120]
[408401297,1773568251128,-566.9,0.00040821,120]
[408401298,1773568251137,-500.0,0.00040821,120]
[408401299,1773568251146,-566.9,0.00040821,120]
[408401300,1773568251155,-500.0,0.00040821,120]
[408401301,1773568251165,-566.9,0.00040821,120]
[408401302,1773568251173,-500.0,0.00040821,120]
[408401303,1773568251182,-566.9,0.00040821,120]
[408401304,1773568251190,-500.0,0.00040821,120]
[408401305,1773568251200,-566.9,0.00040821,120]
[408401306,1773568251209,-500.0,0.00040821,120]
[408401307,1773568251219,-566.9,0.00040821,120]
[408401308,1773568251227,-153.875058,0.00040821,120]
[408401309,1773568251236,-237.44445126,0.00040821,120]
[408401310,1773568251246,-566.9,0.00040821,120]
[408401311,1773568251255,-566.9,0.00040821,120]
[408401312,1773568251264,-566.9,0.00040821,120]
[408401313,1773568251273,-566.9,0.00040821,120]
[408401314,1773568251282,-566.9,0.00040821,120]
[408401315,1773568251291,-566.9,0.00040821,120]
[408401316,1773568251301,-566.9,0.00040821,120]
[408401317,1773568251310,-566.9,0.00040821,120]
[408401318,1773568251319,-566.9,0.00040821,120]
[408401319,1773568251328,-566.9,0.00040821,120]
[408401320,1773568251338,-566.9,0.00040821,120]
[408401321,1773568251347,-566.9,0.00040821,120]
[408401322,1773568251356,-566.9,0.00040821,120]
[408401323,1773568251365,-566.9,0.00040821,120]
[408401324,1773568251374,-566.9,0.00040821,120]
[408401325,1773568251383,-567.0251046,0.00040821,120]
[408401326,1773568251392,-164.95755339,0.00040821,120]
[408401327,1773568251401,-1295.21,0.00040821,120]
[408401328,1773568251410,-1295.21,0.00040821,120]
[408401329,1773568251419,-1295.21,0.00040821,120]
[408401330,1773568251428,-1295.21,0.00040821,120]
[408401331,1773568251437,-1295.21,0.00040821,120]
[408401332,1773568251446,-174.71795945,0.00040821,30]
[408401333,1773568251455,-1295.21,0.00040821,120]
[408401334,1773568251468,-1295.21,0.00040821,120]
[408401335,1773568251477,-1295.21,0.00040821,120]
[408401336,1773568251486,-1295.21,0.00040821,120]
[408401337,1773568251495,-1295.21,0.00040821,120]
[408401338,1773568251504,-1295.21,0.00040821,120]
[408401339,1773568251513,-1295.21,0.00040821,120]
[408401340,1773568251522,-1295.21,0.00040821,120]
[408401341,1773568251531,-1295.21,0.00040821,120]
[408401342,1773568251542,-1295.21,0.00040821,120]
[408401343,1773568251551,-2244.56,0.00040821,120]
[408401344,1773568251560,-1295.21,0.00040821,120]
[408401345,1773568251568,-2244.56,0.00040821,120]
[408401346,1773568251578,-1295.21,0.00040821,120]
[408401347,1773568251587,-2244.56,0.00040821,120]
[408401348,1773568251595,-1295.21,0.00040821,120]
[408401349,1773568251604,-2244.56,0.00040821,120]
[408401350,1773568251613,-1295.21,0.00040821,120]
[408401351,1773568251628,-2244.56,0.00040821,120]
[408401352,1773568251642,-1295.21,0.00040821,120]
[408401353,1773568251651,-2244.56,0.00040821,120]
[408401354,1773568251661,-1295.21,0.00040821,120]
[408401355,1773568251670,-2244.56,0.00040821,120]
[408401356,1773568251680,-1295.21,0.00040821,120]
[408401357,1773568251690,-2244.56,0.00040821,120]
[408401358,1773568251705,-1295.21,0.00040821,120]
[408401359,1773568251717,-2244.56,0.00040821,120]
[408401360,1773568251727,-1295.22653833,0.00040821,120]
[408401361,1773568251736,-2244.56,0.00040821,120]
[408401362,1773568251746,-2244.56,0.00040821,120]
[408401363,1773568251755,-2244.56,0.00040821,120]
[408401364,1773568251767,-2244.56,0.00040821,120]
[408401365,1773568251775,-2244.56,0.00040821,120]
[408401366,1773568251785,-2244.56,0.00040821,120]
[408401367,1773568251794,-2244.56,0.00040821,120]
[408401368,1773568251803,-2244.56,0.00040821,120]
[408401369,1773568251812,-2244.56,0.00040821,120]
[408401370,1773568251822,-2244.56,0.00040821,120]
[408401371,1773568251830,-2244.56,0.00040821,120]
[408401372,1773568251840,-2244.56,0.00040821,120]
[408401373,1773568251849,-2244.56,0.00040821,120]
[408401374,1773568251858,-2244.56,0.00040821,120]
[408401375,1773568251867,-2244.64401177,0.00040821,120]
[408401376,1773568251876,-803.37,0.00040821,120]
[408401377,1773568251885,-803.37,0.00040821,120]
[408401378,1773568251894,-150.05558329,0.00040821,120]
[408401379,1773568251903,-803.37,0.00040821,120]
[408401380,1773568251912,-803.37,0.00040821,120]
[408401381,1773568251921,-168.63262263,0.00040821,120]
[408401382,1773568251930,-803.37,0.00040821,120]
[408401383,1773568251939,-803.37,0.00040821,120]
[408401384,1773568251948,-803.37,0.00040821,120]
[408401385,1773568251957,-803.37,0.00040821,120]
[408401386,1773568251966,-803.37,0.00040821,120]
[408401387,1773568251975,-803.37,0.00040821,120]
[408401388,1773568251984,-803.37,0.00040821,120]
[408401389,1773568251993,-803.37,0.00040821,120]
[408401390,1773568252002,-803.37,0.00040821,120]
[408401391,1773568252011,-803.37,0.00040821,120]
[408401392,1773568252020,-803.37,0.00040821,120]
[408401393,1773568252029,-803.37,0.00040821,120]
[408401394,1773568252038,-803.37,0.00040821,120]
[408401395,1773568252047,-803.37,0.00040821,120]
[408401396,1773568252056,-803.37,0.00040821,120]
[408401397,1773568252065,-803.37,0.00040821,120]
[408401398,1773568252074,-803.37,0.00040821,120]
[408401399,1773568252083,-803.37,0.00040821,120]
[408401400,1773568252092,-803.37,0.00040821,120]
[408401401,1773568252101,-803.48362453,0.00040821,120]
[408401402,1773568252110,-182.94155753,0.00040821,120]
[408401403,1773568252120,-405.51162503,0.00040821,120]
[408401404,1773568252129,-500.0,0.00040821,7]
[408401405,1773568252138,-500.0,0.00040821,7]
[408401406,1773568252147,-500.0,0.00040821,7]
[408401407,1773568252156,-500.0,0.00040821,7]
[408401408,1773568252165,-500.0,0.00040821,7]
[408401409,1773568252174,-500.0,0.00040821,7]
[408401410,1773568252183,-195.72502257,0.00040821,120]
[408401411,1773568252192,-431.43397939,0.00040821,7]
[408401412,1773568252201,-160.61992386,0.00040821,60]
[408401413,1773568252211,-163.16282213,0.00040821,120]
[408401414,1773568252219,-529.30021234,0.00040821,120]
[408401415,1773568252228,-171.78715339,0.00040821,120]
[408401416,1773568252237,-155.18832528,0.00040821,120]
[408401417,1773568252246,-500.0,0.00040821,30]
[408401418,1773568252255,-500.0,0.00040821,30]
[408401419,1773568252264,-329.90818872,0.00040821,30]
[408401420,1773568252273,-161.85239641,0.00040821,120]
[408401421,1773568252281,-500.0,0.00040821,120]
[408401422,1773568252290,-176.0943771,0.00040821,120]
[408401423,1773568252299,-500.0,0.00040821,120]
[408401424,1773568252308,-500.0,0.00040821,120]
[408401425,1773568252317,-500.0,0.00040821,120]
[408401426,1773568252326,-500.0,0.00040821,120]
[408401427,1773568252335,-500.0,0.00040821,120]
[408401428,1773568252343,-500.0,0.00040821,120]
[408401429,1773568252352,-500.0,0.00040821,120]
[408401430,1773568252361,-500.0,0.00040821,120]
[408401431,1773568252370,-526.31738124,0.00040821,120]
[408401432,1773568252378,-187.77425532,0.00040821,120]
[408401433,1773568252555,-165.14088187,0.00040821,120]
[408401434,1773568252564,-500.0,0.00040821,5]
[408401435,1773568252574,-500.0,0.00040821,5]
[408401436,1773568252584,-500.0,0.00040821,5]
[408401437,1773568252593,-500.0,0.00040821,5]
[408401438,1773568252603,-500.0,0.00040821,5]
[408401439,1773568252613,-532.99014397,0.00040821,5]
[408401440,1773568252622,-200.21466675,0.00040821,120]
[408401441,1773568252632,-151.19959722,0.00040821,120]
[408401442,1773568252642,-171.414775,0.00040821,120]
[408401443,1773568252652,-212.6867018,0.00040821,120]
[408401444,1773568252662,-168.85981479,0.00040821,120]
[408401445,1773568252671,-160.05391422,0.00040821,120]
[408401446,1773568252680,-184.78589314,0.00040821,120]
[408401447,1773568252690,-500.0,0.00040821,120]
[408401448,1773568252699,-500.0,0.00040821,120]
[408401449,1773568252708,-500.0,0.00040821,120]
[408401450,1773568252719,-500.0,0.00040821,120]
[408401451,1773568252729,-500.0,0.00040821,120]
[408401452,1773568252738,-500.0,0.00040821,120]
[408401453,1773568252747,-500.0,0.00040821,120]
[408401454,1773568252756,-500.0,0.00040821,120]
[408401455,1773568252765,-500.0,0.00040821,120]
[408401456,1773568252775,-500.0,0.00040821,120]
[408401457,1773568252784,-425.57172708,0.00040821,120]
[408401458,1773568252793,-194.46764133,0.00040821,120]
[408401459,1773568252802,-153.32820558,0.00040821,120]
[408401460,1773568252811,-163.35064259,0.00040821,120]
[408401461,1773568252820,-6055.72,0.00040821,7]
[408401462,1773568252829,-6055.72,0.00040821,7]
[408401463,1773568252838,-6055.72,0.00040821,7]
[408401464,1773568252848,-6055.72,0.00040821,7]
[408401465,1773568252857,-6055.72,0.00040821,7]
[408401466,1773568252866,-6055.72,0.00040821,7]
[408401467,1773568252876,-6055.72,0.00040821,7]
[408401468,1773568252885,-6055.72,0.00040821,7]
[408401469,1773568252895,-190.35794461,0.00040821,120]
[408401470,1773568252904,-6055.72,0.00040821,7]
[408401471,1773568252913,-6055.72,0.00040821,7]
[408401472,1773568252923,-6055.72,0.00040821,7]
[408401473,1773568252933,-6055.72,0.00040821,7]
[408401474,1773568252942,-6055.72,0.00040821,7]
[408401475,1773568252952,-6055.72,0.00040821,7]
[408401476,1773568252962,-6055.72,0.00040821,7]
[408401477,1773568252972,-6055.72,0.00040821,7]
[408401478,1773568252981,-6055.72,0.00040821,7]
[408401479,1773568252992,-6055.72,0.00040821,7]
[408401480,1773568253001,-6055.72,0.00040821,7]
[408401481,1773568253011,-6055.72,0.00040821,7]
[408401482,1773568253020,-6055.72,0.00040821,7]
[408401483,1773568253030,-6055.72,0.00040821,7]
[408401484,1773568253040,-6055.72,0.00040821,7]
[408401485,1773568253049,-6055.83325398,0.00040821,7]
[408401486,1773568253059,-155.53843798,0.00040821,120]
[408401487,1773568253069,-172.4006273,0.00040821,120]
[408401488,1773568253079,-175.30271605,0.00040821,120]
[408401489,1773568253088,-158.7945886,0.00040821,120]
[408401490,1773568253098,-500.0,0.00040821,2]
[408401491,1773568253108,-500.0,0.00040821,2]
[408401492,1773568253118,-150.60096109,0.00040821,120]
[408401493,1773568253128,-500.0,0.00040821,2]
[408401494,1773568253138,-500.0,0.00040821,2]
[408401495,1773568253147,-500.0,0.00040821,2]
[408401496,1773568253156,-536.32061041,0.00040821,2]
[408401497,1773568253169,-174.51371966,0.00040821,120]
[408401498,1773568253179,-153.07542946,0.00040821,120]
[408401499,1773568253189,-189.43564541,0.00040821,120]
[408401500,1773568253198,-834.65,0.00040821,14]
[408401501,1773568253207,-834.65,0.00040821,14]
[408401502,1773568253217,-834.65,0.00040821,14]
[408401503,1773568253226,-834.65,0.00040821,14]
[408401504,1773568253236,-834.65,0.00040821,14]
[408401505,1773568253245,-834.65,0.00040821,14]
[408401506,1773568253255,-834.65,0.00040821,14]
[408401507,1773568253264,-834.65,0.00040821,14]
[408401508,1773568253274,-834.65,0.00040821,14]
[408401509,1773568253284,-834.65,0.00040821,14]
[408401510,1773568253294,-834.65,0.00040821,14]
[408401511,1773568253303,-834.65,0.00040821,14]
[408401512,1773568253312,-834.65,0.00040821,14]
[408401513,1773568253321,-834.65,0.00040821,14]
[408401514,1773568253330,-834.65,0.00040821,14]
[408401515,1773568253339,-834.65,0.00040821,14]
[408401516,1773568253349,-834.65,0.00040821,14]
[408401517,1773568253359,-834.65,0.00040821,14]
[408401518,1773568253368,-834.65,0.00040821,14]
[408401519,1773568253377,-834.65,0.00040821,14]
[408401520,1773568253386,-834.65,0.00040821,14]
[408401521,1773568253396,-834.65,0.00040821,14]
[408401522,1773568253405,-834.65,0.00040821,14]
[408401523,1773568253414,-834.77239113,0.00040821,14]
[408401524,1773568253424,-500.0,0.00040821,30]
[408401525,1773568253433,-500.0,0.00040821,30]
[408401526,1773568253443,-500.0,0.00040821,30]
[408401527,1773568253452,-500.0,0.00040821,30]
[408401528,1773568253463,-500.0,0.00040821,30]
[408401529,1773568253474,-500.0,0.00040821,30]
[408401530,1773568253483,-500.0,0.00040821,30]
[408401531,1773568253494,-500.0,0.00040821,30]
[408401532,1773568253503,-500.0,0.00040821,30]
[408401533,1773568253512,-500.0,0.00040821,30]
[408401534,1773568253521,-500.0,0.00040821,30]
[408401535,1773568253530,-500.0,0.00040821,30]
[408401536,1773568253541,-500.0,0.00040821,30]
[408401537,1773568253551,-500.0,0.00040821,30]
[408401538,1773568253560,-500.0,0.00040821,30]
[408401539,1773568253569,-500.0,0.00040821,30]
[408401540,1773568253579,-500.0,0.00040821,30]
[408401541,1773568253588,-500.0,0.00040821,30]
[408401542,1773568253597,-500.0,0.00040821,30]
[408401543,1773568253607,-500.0,0.00040821,30]
[408401544,1773568253616,-500.0,0.00040821,30]
[408401545,1773568253625,-500.0,0.00040821,30]
[408401546,1773568253635,-169.60923278,0.00040821,120]
[408401547,1773568253644,-500.0,0.00040821,30]
[408401548,1773568253654,-156.7077333,0.00040821,30]
[408401549,1773568253663,-250.28151239,0.00040821,120]
[408401550,1773568253672,-185.6093357,0.00040821,120]
[408401551,1773568253683,-179.02616473,0.00040821,120]
[408401552,1773568253692,-182.339934,0.00040821,120]